Cogmind - Beta 13 @@@ ROGUE MODE // 2024.06.09 @ 20:32:38 Player: ExAnimoso Result: Destroyed by as-68656 with Assembled Blade Performance ------------- Evolutions (0) 0 Regions Visited (2) 400 Robots Destroyed (22) 110 Value Destroyed (458) 458 Prototype IDs (0) 0 Alien Tech Used (0) 0 Bonus (0) 0 TOTAL SCORE: 968 Bonus ------- None Cogmind --------- Core Integrity 0/250 Matter 267/300 Energy 85/100 System Corruption 0% Temperature Cool (0) Movement Core (400) Ox7 Location -10/Mines Parts ------- > --- POWER (1) -------- (None) > --- PROPULSION (2) --- (None) > --- UTILITY (2) ------ Large Storage Unit Signal Interpreter > --- WEAPON (2) ------- Light Cannon > --- INVENTORY (15) --- Ion Engine Light Nuclear Core Heat Sink Cargo Storage Unit Medium Armor Plating Medium Armor Plating Small Laser Assault Rifle Peak State ------------ > --- POWER ------------ Ion Engine > --- PROPULSION ------- Light Treads Light Treads > --- UTILITY ---------- Large Storage Unit Signal Interpreter > --- WEAPON ----------- Small Laser Assault Rifle > --- INVENTORY -------- Ion Engine Light Nuclear Core Heat Sink Cargo Storage Unit Small Laser Assault Rifle Light Cannon [Rating: 8] Favorites ----------- Power Ion Engine Engine Ion Engine Propulsion Light Treads Treads Light Treads Utility Large Storage Unit Storage Large Storage Unit Processor Signal Interpreter Weapon Assault Rifle Energy Gun Small Laser Ballistic Gun Assault Rifle Ballistic Cannon Light Cannon Build | -11 -10 -10 ------- Run | Yrd Mat Min Slots Evolved . | . . . Power . | . . . Propulsion . | . . . Utility . | . . . Weapon . | . . . Parts Attached 13 | 6 5 2 Power 2 | 1 1 . Engine 2 | 1 1 . Core . | . . . Reactor . | . . . Propulsion 3 | 2 1 . Treads 3 | 2 1 . Leg . | . . . Wheel . | . . . Hover . | . . . Flight . | . . . Utility 3 | 1 2 . Device . | . . . Storage 2 | 1 1 . Processor 1 | . 1 . Hackware . | . . . Protection . | . . . Artifact . | . . . Weapon 5 | 2 1 2 Energy Gun 2 | 1 1 . Energy Cannon . | . . . Ballistic Gun 1 | 1 . . Ballistic Cannon 2 | . . 2 Launcher . | . . . Special Weapon . | . . . Impact Weapon . | . . . Slashing Weapon . | . . . Piercing Weapon . | . . . Special Melee Weapon . | . . . Unidentified Prototypes . | . . . Parts Lost 8 | . 2 6 Power 2 | . 1 1 Propulsion 2 | . . 2 Utility . | . . . Weapon 4 | . 1 3 Highest Loss Streak 5 | . 2 5 To Critical Strikes . | . . . Average Slot Usage (%) 91 | . 90 93 Engine 13 | . 14 13 Treads 27 | . 27 25 Storage 14 | . 14 14 Processor 6 | . 6 14 Energy Gun 13 | . 13 7 Ballistic Gun 13 | . 14 12 Naked Turns . | . . . Heaviest Build 30 | 12 28 30 Greatest Support 40 | 40 40 40 Greatest Overweight (x) 9 | . 1 9 Average Overweight (x) . | . . . Largest Inventory Capacity 15 | 8 15 15 Average Capacity 14 | 6 14 15 Most Carried 11 | 4 11 11 Average Carried 5 | 1 5 10 Final Capacity 15 | 8 15 15 Final Carried 11 | 1 11 9 Class Distribution -------------------- 100% | Mutant Dominant Class ---------------- Mutant | -10/Materials Mutant | -10/Mines Resources | -11 -10 -10 ----------- Run | Yrd Mat Min Matter Collected 509 | 216 245 48 Remotely . | . . . Salvage Created 631 | . 574 57 Parts 55 | . 49 6 Haulers Intercepted . | . . . Recyclers Shooed . | . . . Parts Field Recycled . | . . . Retrieved Matter . | . . . Parts Self-Destructed . | . . . Prevented . | . . . Kills | -11 -10 -10 ------- Run | Yrd Mat Min Combat Hostiles Destroyed 19 | . 15 4 Guns 18 | . 15 3 Cannons 1 | . . 1 Classes Destroyed 6 | . 5 1 Worker 1 | . 1 . Operator 1 | . 1 . Watcher 2 | . 2 . Swarmer 9 | . 6 3 Grunt 9 | . 9 . Assembled 1 | . . 1 Best Kill Streak 4 | . 4 3 Combat Bots Only 4 | . 4 3 Max Kills in Single Turn 1 | . 1 1 Gunslinging . | . . . Exploded . | . . . Melee . | . . . Uniques/NPCs Destroyed . | . . . Combat | -11 -10 -10 -------- Run | Yrd Mat Min Hostile Shots Fired 127 | . 83 44 Missed 38 | . 27 11 Damage Taken 1019 | . 600 419 Core 258 | . 92 166 Absorbed by Shields . | . . . Core Remaining (%) 100 | 100 . . Volleys Fired 76 | . 60 16 Largest 2 | . 2 2 Hottest 60 | . 60 60 Shots Fired 129 | . 105 24 Gun 119 | . 105 14 Cannon 10 | . . 10 Launcher . | . . . Special . | . . . Kinetic 80 | . 60 20 Thermal 39 | . 35 4 Explosive . | . . . Electromagnetic 10 | . 10 . Robot Hit Streak 10 | . 10 4 Robot Miss Streak 4 | . 4 2 Penetration Max . | . . . Secondary Targets . | . . . Shots Hit Robots 81 | . 65 16 Core Hits 39 | . 32 7 Critical Kills . | . . . Critical Parts Destroyed 1 | . . 1 Critical Strikes 2 | . . 2 Destroy 1 | . . 1 Blast 1 | . . 1 Melee Attacks . | . . . Impact . | . . . Slashing . | . . . Piercing . | . . . Sneak Attacks . | . . . Combat Hostiles . | . . . Follow-up Attacks . | . . . Damage Inflicted 1105 | . 864 241 Guns 981 | . 864 117 Cannons 124 | . . 124 Explosions . | . . . Melee . | . . . Ramming . | . . . Kinetic 763 | . 556 207 Thermal 252 | . 218 34 Explosive . | . . . Electromagnetic 90 | . 90 . Impact . | . . . Slashing . | . . . Piercing . | . . . Highest Corruption . | . . . Average Corruption . | . . . Corruption Purged . | . . . Corruption Blocked . | . . . Overload Shots . | . . . Overflow Damage 5 | . . 5 Projectiles 5 | . . 5 Explosions . | . . . Melee . | . . . Knockbacks 4 | . . 4 Impact . | . . . Kinetic 3 | . . 3 Secondary 1 | . . 1 Self-Inflicted Damage . | . . . Shots . | . . . Rammed . | . . . Targets Rammed . | . . . Kicked . | . . . Crushed . | . . . Highest Temperature 45 | . 30 45 Average Temperature 16 | . 15 27 Received Heat Transfer 376 | . 276 100 Siege Activations . | . . . Robots Corrupted . | . . . Combat Hostiles . | . . . Parts Fried . | . . . Impact Corruptions 1 | . . 1 Robots Melted . | . . . Combat Hostiles . | . . . Parts Melted 1 | . . 1 Heat Transferred 575 | . 500 75 Parts Sabotaged . | . . . Parts Stolen . | . . . Parts Stripped . | . . . Power Chain Reactions . | . . . Alert | -11 -10 -10 ------- Run | Yrd Mat Min Peak Influence 209 | . 209 109 Initial 34 | . . 34 Average 80 | . 87 59 Maximum Alert Level 1 | . 1 . Low Security (%) 98 | 100 97 100 Level 1 1 | . 2 . Level 2 . | . . . Level 3 . | . . . Level 4 . | . . . Level 5 . | . . . High Security . | . . . Max Security . | . . . Squads Dispatched 2 | . 2 . Investigation 1 | . 1 . Extermination . | . . . Reinforcement 1 | . 1 . Assault . | . . . Garrison . | . . . Intercept . | . . . Searches Triggered . | . . . Construction Impeded . | . . . Haulers Reinforced . | . . . Active Scanning Responses . | . . . Cargo Convoy Interrupts . | . . . Stealth | -11 -10 -10 --------- Run | Yrd Mat Min Distress Signals . | . . . Communications Jammed . | . . . Distress Signals . | . . . Times Spotted 41 | . 26 15 Peak Tracking Total 11 | . 5 11 Tactical Retreats 1 | . . 1 Traps | -11 -10 -10 ------- Run | Yrd Mat Min Traps Triggered 2 | . 2 . Indirectly . | . . . Trap Hack Attempts . | . . . Triggered . | . . . Disarmed . | . . . Reprogrammed . | . . . Reused . | . . . Traps Extracted . | . . . Installed . | . . . Triggered . | . . . Machines | -11 -10 -10 ---------- Run | Yrd Mat Min Machines Disabled . | . . . Max in Single Turn . | . . . Machines Repaired . | . . . Machines Dismantled . | . . . Machines Sabotaged . | . . . Overloaded Fab Kills . | . . . Hacking | -11 -10 -10 --------- Run | Yrd Mat Min Machines Accessed 6 | . 6 . Terminals 5 | . 5 . Fabricators . | . . . Repair Stations . | . . . Recycling Units 1 | . 1 . Scanalyzers . | . . . Garrison Access . | . . . Total Hacks 11 | . 11 . Successful 5 | . 5 . Failed 6 | . 6 . Catastrophic 3 | . 3 . Database Lockouts . | . . . Manual 11 | . 11 . Terminals 9 | . 9 . Fabricators . | . . . Repair Stations . | . . . Recycling Units 2 | . 2 . Scanalyzers . | . . . Garrison Access . | . . . Terminal Hacks 3 | . 3 . Record 1 | . 1 . Robot Analysis 2 | . 2 . Fabricator Hacks . | . . . Repair Station Hacks . | . . . Recycling Unit Hacks 2 | . 2 . Retrieve Matter 1 | . 1 . Retrieve Components 1 | . 1 . Scanalyzer . | . . . Garrison Access Hacks . | . . . Unauthorized Hacks . | . . . Terminals . | . . . Fabricators . | . . . Repair Stations . | . . . Recycling Units . | . . . Scanalyzers . | . . . Garrison Access . | . . . Data Cores Recovered 1 | . 1 . Used . | . . . Hacking Detections 5 | . 5 . Full Trace Events 2 | . 2 . Feedback Events . | . . . Feedback Blocked . | . . . Robot Schematics Acquired . | . . . Robots Built . | . . . Authchips . | . . . Time . | . . . Total Robot Build Rating . | . . . Part Schematics Acquired . | . . . Parts Built . | . . . Authchips . | . . . Time . | . . . Total Part Build Rating . | . . . Parts Repaired . | . . . Time . | . . . Parts Recycled . | . . . Recycled Matter . | . . . Retrieved Matter . | . . . Retrieved Components . | . . . Parts Scanalyzed . | . . . Part Schematics Acquired . | . . . Parts Damaged . | . . . Bothacking | -11 -10 -10 ------------ Run | Yrd Mat Min Used RIF Installer . | . . . Robots Hacked . | . . . Non-combat . | . . . Combat . | . . . Robot Hacks Applied . | . . . Relay Couplers Released . | . . . Fabnet Peak Effective % . | . . . Robots Rewired . | . . . Allies Hacked . | . . . Hacks Repelled . | . . . Allies | -11 -10 -10 -------- Run | Yrd Mat Min Total Allies . | . . . Largest Group . | . . . Highest-Rated Group . | . . . Highest-Rated Ally . | . . . Total Orders . | . . . Ally Attacks . | . . . Total Damage . | . . . Kills . | . . . Allies Corrupted . | . . . Allies Melted . | . . . Intel | -11 -10 -10 ------- Run | Yrd Mat Min Robot Analysis Total 2 | . 2 . Derelict Logs Recovered . | . . . Drone Launches . | . . . Drone Recoveries . | . . . Exploration | -11 -10 -10 ------------- Run | Yrd Mat Min Turns Passed 1415 | 63 1194 158 Spaces Moved 708 | 36 603 69 Core 7 | 6 . 1 Treads 701 | 30 603 68 Legs . | . . . Wheels . | . . . Hover . | . . . Flight . | . . . Fastest Speed 50 | 50 160 160 Average Speed 161 | 141 162 166 Slowest Speed 500 | 160 240 500 Overloaded Moves . | . . . Propulsion Burnouts . | . . . Robots Hopped . | . . . Cave-ins Triggered . | . . . Exploration Rate (%) 33 | 3 81 17 Regions Visited 2 Branch Regions 1 Pre-discovered Areas . | . . . Known Exits Taken 1 | . 1 . Unknown Exits Taken 1 | 1 . . Scrap Searched . | . . . Spaces Dug . | . . . Terrain Destroyed . | . . . Melee . | . . . Projectile . | . . . AOE . | . . . Terrain Rammed . | . . . Walls Destroyed . | . . . Machines Disabled . | . . . Actions | -11 -10 -10 --------- Run | Yrd Mat Min Total 848 | 48 712 88 Wait 31 | . 30 1 Move 706 | 35 602 69 Hop . | . . . Pick Up 21 | 7 14 . Fast Attach . | . . . Attach 12 | 6 4 2 Detach . | . . . Swap 1 | . 1 . Drop 1 | . 1 . Fire 76 | . 60 16 Melee . | . . . Ram . | . . . Kick . | . . . Crush . | . . . Escape Stasis . | . . . Rewire . | . . . Trap . | . . . Miscellaneous . | . . . Route ------- -11/Scrapyard -10/Materials (discovered 3 exits: *Mat x2 / *Min) -10/Mines (discovered 1 exit: *Mat) History --------- Turn | Location | Event 13 | -11/Scrapyard | Discovered new exit (range 14) 64 | -11/Scrapyard | Entered Materials 281 | -10/Materials | Discovered new exit (range 10) 305 | -10/Materials | Build established: Mutant 973 | -10/Materials | Discovered new exit (range 4) 1081 | -10/Materials | Discovered new exit (range 5) 1088 | -10/Materials | Identified exit to Mines 1258 | -10/Materials | Entered Mines 1360 | -10/Mines | Discovered new exit (range 13) 1365 | -10/Mines | Assembled infested the area 1370 | -10/Mines | Assisted by a Guerilla fighting off Assembled 1377 | -10/Mines | Identified exit to Materials 1392 | -10/Mines | Core integrity fell below 50% 1415 | -10/Mines | Core integrity fell below 20% 1416 | -10/Mines | Destroyed by as-68656 with Assembled Blade Last Messages --------------- 01394_ K-01 Serf collects debris. 01395_ Assault Rifle destroyed. 01396_ as-91711 suffers critical hit (Blast). 01396_ as-91711 destroyed. 01396_ Lgt. Treads destroyed. 01399_ K-01 Serf collects debris. 01402_ Lgt. Treads destroyed. 01403_ K-01 Serf collects debris. 01404_ Acquired 4 matter. 01405_ as-54203 sneak attacks. 01405_ K-01 Serf destroyed. 01406_ U-05 Engineer destroyed. 01408_ Ion Engine destroyed. 01409_ as-64655 knocked back. 01409_ Destroyed Asb. F-torch. 01409_ as-33611 system corrupted by crushing effect. 01411_ as-52001 knocked back. 01413_ as-92236 knocked back. 01413_ Lgt. Cannon destroyed. Map ----- +----------------------------------------------------+ | ?????????????????????????????????????????????????? | | ?????????????????????????????????????????????????? | | ?????????????????????????????????????????????????? | | ?????????????????????????????????????????????????? | | ?????????????????????????????????????????????????? | | ?????????????????????????????????????????????????? | | ?????????????????????????????????????????????????? | | ?????????????????????????????????????????????????? | | ?????????????????????????????????????????????????? | | ?????????????????????????????????????????????????? | | ?????????????????????????????????????????????????? | | ?????????????????????????????????????????????????? | | ?????????????????????????????????????????????????? | | ?????????????????????????????????????????????????? | | ?????????????????????????????????????????????????? | | ?????????????????????????????????????????????????? | | ?????????????????????????????????????????????????? | | ?????????????????????????????????????????????????? | | ???????????? ???????????###????????????????????? | | ????????????# ?????????# ????????????????????? | | ????????????# ????????# #????????????????????? | | ?????????????# ??????# #?####???????????????? | | ?????????????# ###??#%### ##??????????????? | | ?????????????# #?#=## ###????????????? | | ????????????# ##%# ##???????????? | | ?????????? t @ a%%< a #???????????? | | ?????????? ## a ! a aa#???????????? | | ??????????????????????######## aa## ???? | | ?????????????????????????????# %a ???? | | ?????????????????????????????# # ???? | | ?????????????????????????????# ##?### ##????? | | ????????????????????????????## ##?????? ##?????? | | ????????????????????????????# ####???????????? | | ????????????????????????????## ##??????????? | | ?????????????????????????????#### #??????????? | | ???????????????#######??????????## #??????????? | | ???????????????# ##??????????## #??????????? | | ???????????????# ##??????????# #??????????? | | ???????????????# ##?????????# #??????????? | | ???????????????## #???###???# ##?????????? | | ????????????????## ##?# ##??# =% ##????????? | | ?????????????????#### ## #??## %* #????????? | | ????????????????????## #??#[[== #????????? | | ?????????????????????### #??# ##????????? | | ???????????????????????## ##??# ###?????????? | | ????????????????????????# #???# #???????????? | | ????????????????????????# ##???# #???????????? | | ????????????????????????# ##???## ##??????????? | | ????????????????????????# ##????# #??????????? | | ????????????????????????# ##???## #??????????? | +----------------------------------------------------+ Best States ------------- Heat Dissipation 25 Energy Generation 10 Energy Capacity 250 Matter Stores 300 Matter Capacity 300 Sight Range 16 Terrain Scan Density 10 Evasion (%) 40 Recoil Reduction 2 Item Schematics ----------------- None Robot Schematics ------------------ None Fabricated ------------ Nothing Alien Tech Used ----------------- None Achievements -------------- None Challenges ------------ None Game ------ Seed ScatterControlProtomatter Manual? 0 Play Time 00:15:38 Cumulative 5.7 hours Start 2024.06.09 @ 20:17:02 End 2024.06.09 @ 20:32:38 Sessions 1 Manual Loads 0 Difficulty Rogue Special Mode None Game No. 4 Rogue 2 Adventurer 0 Explorer 2 Win Type - Total 0 Types 0/0/0/0/0/0/0/0/0 Lore% 8 Gallery% 12 Achievement% 17 Wizard Run 0 Options --------- Layout 1 ASCII 0 Keyboard 0 Movement Mouse Keybinds 0 Fullscreen 2 Font 24/Smallcaps Map View 50x35 Zoom Use 0% Tactical HUD 1 Map Filters NONE Filters NONE Steam 1 RUN: 51597198-6ffe-4cd3-824e-71036130ab0e